[Event "IIFL Wealth  4th Mumbai Junior U-13"]
[Site "Mumbai"]
[Date "2019.01.02"]
[Round "4"]
[White "Pranav Vijay"]
[Black "Jain Kashish Manoj"]
[Result "0-1"]
[ECO "B07"]
[WhiteElo "2265"]
[BlackElo "1853"]
[Annotator "ChessBase"]
[PlyCount "106"]
[EventDate "2018.12.30"]
[EventType "swiss"]
[EventCountry "IND"]
[SourceTitle "playchess.com"]
[Source "ChessBase"]
[SourceQuality "1"]
[TimeControl "40/5400+30:1800+30"]

1. e4 {[%emt 0:00:00]} d6 {[%emt 0:00:00]} 2. d4 {[%emt 0:00:00]} Nf6 {[%emt 0:00:00]} 3. Nc3 {[%emt 0:00:00]} g6 {[%emt 0:00:00]} 4. Be3 {[%emt 0:00:00]} c6 {[%emt 0:00:00]} 5. Nf3 {[%emt 0:00:17]} Bg7 {[%emt 0:01:29]} 6. Qd2 {[%emt 0:00:23]} b5 {[%emt 0:01:48]} 7. a3 {[%emt 0:01:08]} Nbd7 {[%emt 0:08:06]} 8. h3 {[%emt 0:00:36]} O-O {[%emt 0:13:56]} 9. g4 {[%emt 0:04:46]} Bb7 {[%emt 0:06:41]} 10. g5 {[%emt 0:02:42]} Nh5 {[%emt 0:02:48]} 11. Be2 {[%emt 0:00:09]} e5 {[%emt 0:13:45]} 12. dxe5 {[%emt 0:01:14]} dxe5 {[%emt 0:01:02]} 13. Nh2 {[%emt 0:03:39]} Nf4 {[%emt 0:07:12]} 14. Bxf4 {[%emt 0:00:16]} exf4 {[%emt 0:00:01]} 15. Qxf4 {[%emt 0:00:02]} Qe7 {[%emt 0:10:53]} 16. Rd1 {[%emt 0:01:31]} Nc5 {[%emt 0:04:30]} 17. Qe3 {[%emt 0:03:00]} Rae8 {[%emt 0:03:52]} 18. f3 {[%emt 0:02:32]} f5 {[%emt 0:01:35]} 19. gxf6 {[%emt 0:00:10]} Bxf6 {[%emt 0:00:03]} 20. O-O {[%emt 0:00:54]} Bg5 {[%emt 0:08:26]} 21. Qf2 {[%emt 0:05:22]} Bc8 {[%emt 0:01:32]} 22. Kh1 {[%emt 0:11:51]} Bxh3 {[%emt 0:01:06]} 23. Rg1 {[%emt 0:00:01]} Nxe4 {[%emt 0:06:22]} 24. Nxe4 {[%emt 0:00:18]} Qxe4 {[%emt 0:00:01]} 25. Bd3 {[%emt 0:00:01]} Qh4 {[%emt 0:02:27]} 26. Qg3 {[%emt 0:00:12]} Bf6 {[%emt 0:00:45]} 27. Be4 {[%emt 0:03:53]} Rxe4 {[%emt 0:03:48]} 28. fxe4 {[%emt 0:00:16]} Qxe4+ {[%emt 0:00:08]} 29. Qf3 {[%emt 0:01:47]} Qxf3+ {[%emt 0:00:37]} 30. Nxf3 {[%emt 0:00:02]} Bxb2 {[%emt 0:00:44]} 31. Nd4 {[%emt 0:00:01]} Bxd4 {[%emt 0:01:03]} 32. Rxd4 {[%emt 0:00:01]} Be6 {[%emt 0:00:08]} 33. Rd6 {[%emt 0:00:19]} Bd5+ {[%emt 0:00:06]} 34. Kh2 {[%emt 0:00:03]} Rf2+ {[%emt 0:00:47]} 35. Kg3 {[%emt 0:00:01]} Rxc2 {[%emt 0:00:26]} 36. Rf1 {[%emt 0:01:27]} Rg2+ {[%emt 0:00:47]} 37. Kf4 {[%emt 0:00:36]} Kf7 {[%emt 0:00:46]} 38. Rd7+ {[%emt 0:01:13]} Ke6 {[%emt 0:00:32]} 39. Rxh7 {[%emt 0:00:01]} a5 {[%emt 0:00:28]} 40. Rb7 {[%emt 0:00:00]} g5+ {[%emt 0:00:00]} 41. Ke3 {[%emt 0:02:58]} Rg3+ {[%emt 0:00:46]} 42. Kd4 {[%emt 0:00:04]} c5+ {[%emt 0:00:08]} 43. Kxc5 {[%emt 0:00:12]} Bxb7 {[%emt 0:00:04]} 44. Kxb5 {[%emt 0:00:04]} Rxa3 {[%emt 0:00:20]} 45. Rg1 {[%emt 0:00:00]} Kf5 {[%emt 0:00:07]} 46. Rf1+ {[%emt 0:00:03]} Rf3 {[%emt 0:00:04]} 47. Rg1 {[%emt 0:00:12]} g4 {[%emt 0:00:11]} 48. Kxa5 {[%emt 0:00:04]} g3 {[%emt 0:00:05]} 49. Kb4 {[%emt 0:00:02]} g2 {[%emt 0:00:07]} 50. Kc4 {[%emt 0:00:05]} Rf1 {[%emt 0:00:05]} 51. Kd3 {[%emt 0:00:02]} Rxg1 {[%emt 0:00:06]} 52. Ke3 {[%emt 0:00:01]} Re1+ {[%emt 0:00:10]} 53. Kf2 {[%emt 0:00:02]} g1=Q# {[%emt 0:00:06]} 0-1

[Event "IIFL Wealth  4th Mumbai Junior U-13"]
[Site "Mumbai"]
[Date "2019.01.02"]
[Round "4"]
[White "Pranesh M"]
[Black "Bhagyashree Patil"]
[Result "0-1"]
[ECO "C56"]
[WhiteElo "2125"]
[BlackElo "1758"]
[Annotator "NA"]
[PlyCount "116"]
[EventDate "2018.12.30"]
[EventType "swiss"]
[EventCountry "IND"]
[SourceTitle "playchess.com"]
[Source "ChessBase"]
[SourceQuality "1"]
[TimeControl "40/5400+30:1800+30"]

1. e4 {[%emt 0:00:00]} e5 {[%emt 0:00:00]} 2. Nf3 {[%emt 0:00:00]} Nc6 {[%emt 0:00:00]} 3. d4 {[%emt 0:00:00]} exd4 {[%emt 0:00:16]} 4. Bc4 {[%emt 0:00:00]} Nf6 {[%emt 0:00:18]} 5. O-O {[%emt 0:00:00]} Nxe4 {[%emt 0:00:35]} 6. Re1 {[%emt 0:00:02]} d5 {[%emt 0:00:22]} 7. Bxd5 {[%emt 0:00:01]} Qxd5 {[%emt 0:00:09]} 8. Nc3 {[%emt 0:00:01]} Qa5 {[%emt 0:00:55]} 9. Nxe4 {[%emt 0:00:07]} Be6 {[%emt 0:00:06]} 10. Bd2 {[%emt 0:00:03]} Qd5 {[%emt 0:08:48]} 11. Bg5 {[%emt 0:00:24]} Be7 {[%emt 0:06:22]} 12. Bxe7 {[%emt 0:00:25] C56: Two Knights: 4 d4 exd4 5 0-0 Nxe4} Nxe7 {[%emt 0:00:55]} 13. Nxd4 {[%emt 0:02:44]} O-O-O {[%emt 0:03:49]} 14. Nxe6 {[%emt 0:01:36]} Qxe6 {[%emt 0:01:30]} 15. Qf3 {[%emt 0:00:34]} Qf5 {[%emt 0:02:27]} 16. Qc3 {[%emt 0:01:32]} Nd5 $146 {[%emt 0:03:15]} ({Predecessor:} 16... Qf6 17. Nc5 Nd5 18. Qa3 Kb8 19. c4 Nf4 20. Qf3 Qb6 21. Nxb7 Rd4 22. Rad1 Rxd1 23. Rxd1 Ne6 24. Rd7 Qxb2 25. Na5 Qb4 26. Rd1 {1-0 (26) Daurelle,H (2189)-Lopez,A (2003) Saint Affrique 2014}) 17. Qxg7 {[%emt 0:04:29]} Rhg8 {[%emt 0:01:43]} 18. Qh6 {[%emt 0:04:33]} Rg6 {[%emt 0:03:10]} 19. Qh4 {[%emt 0:04:16]} Rg4 {[%emt 0:02:48]} 20. Ng3 {[%emt 0:00:17]} Qg6 {[%emt 0:00:17]} 21. Qxd8+ {[%emt 0:07:03]} ({Avoid the trap} 21. Qh3 $2 Nf4 $19 {[%mdl 64] Trapped Piece}) 21... Kxd8 {[%emt 0:00:06]} 22. Rad1 {[%emt 0:00:11]} c6 {[%emt 0:02:05]} 23. h3 {[%emt 0:00:04]} Rf4 {[%emt 0:01:13]} 24. Ne2 {[%emt 0:01:15]} Re4 {[%emt 0:04:27]} 25. f3 {[%emt 0:00:14]} Re8 {[%emt 0:02:04]} 26. Rd2 {[%emt 0:03:49]} Kc8 {[%emt 0:02:46]} 27. Kf2 {[%emt 0:00:55]} Qg5 {[%emt 0:02:15]} 28. Rd3 {[%emt 0:01:22]} Nf4 {[%emt 0:03:51]} 29. Nxf4 {[%emt 0:01:09]} Rxe1 {[%emt 0:00:05]} 30. Kxe1 {[%emt 0:01:04]} Qxf4 {[%emt 0:00:03]} 31. Kd1 {[%emt 0:00:36]} Qh2 {[%emt 0:00:13]} 32. g4 {[%emt 0:03:10]} Qxh3 {[%emt 0:00:35]} 33. Kd2 {[%emt 0:00:17]} f5 {[%emt 0:00:47]} 34. gxf5 {[%emt 0:01:26]} Qxf5 {[%emt 0:00:58]} 35. c3 $19 {[%emt 0:01:13]} h5 {[%emt 0:00:32]} 36. Ke3 {[%emt 0:00:12]} Qe5+ {[%emt 0:00:09]} 37. Kf2 {[%emt 0:00:08]} h4 {[%emt 0:00:14]} 38. f4 {[%emt 0:00:07]} Qxf4+ {[%emt 0:00:06]} 39. Rf3 {[%emt 0:00:09]} Qd2+ {[%emt 0:00:04]} 40. Kg1 {[%emt 0:00:00]} Qxb2 {[%emt 0:00:00]} 41. Rh3 {[%emt 0:00:06]} Qxa2 {[%emt 0:00:24]} 42. Rxh4 {[%emt 0:00:05]} Qa1+ {[%emt 0:00:01]} 43. Kg2 {[%emt 0:00:01]} Qxc3 {[%emt 0:00:06]} 44. Rh3 {[%emt 0:00:06]} Qxh3+ {[%emt 0:00:08]} 45. Kxh3 {[%emt 0:00:09]} a5 {[%emt 0:00:01]} 46. Kh4 {[%emt 0:00:11]} a4 {[%emt 0:00:03]} 47. Kg5 {[%emt 0:00:04]} a3 {[%emt 0:00:02]} 48. Kg6 {[%emt 0:00:04]} a2 {[%emt 0:00:02]} 49. Kf7 {[%emt 0:00:01]} a1=Q {[%emt 0:00:08]} 50. Ke6 {[%emt 0:00:19]} Qd1 {[%emt 0:00:08]} 51. Ke5 {[%emt 0:00:08]} b5 {[%emt 0:00:08]} 52. Kf4 {[%emt 0:00:03]} b4 {[%emt 0:00:04]} 53. Ke4 {[%emt 0:00:04]} b3 {[%emt 0:00:04]} 54. Ke3 {[%emt 0:00:03]} b2 {[%emt 0:00:03]} 55. Kf4 {[%emt 0:00:06]} b1=Q {[%emt 0:00:13]} 56. Ke3 {[%emt 0:00:03]} Qa4 {[%emt 0:00:13]} 57. Kd2 {[%emt 0:00:08]} Qbb3 {[%emt 0:00:16]} 58. Kc1 {[%emt 0:00:05]} Qf4# {[%emt 0:00:09]} 0-1

[Event "IIFL Wealth  4th Mumbai Junior U-13"]
[Site "Mumbai"]
[Date "2019.01.02"]
[Round "4"]
[White "Tyagi, Kushan"]
[Black "Jain Vihaan"]
[Result "0-1"]
[ECO "B32"]
[WhiteElo "2042"]
[BlackElo "1149"]
[Annotator "NA"]
[PlyCount "68"]
[EventDate "2018.12.30"]
[EventType "swiss"]
[EventCountry "IND"]
[SourceTitle "playchess.com"]
[Source "ChessBase"]
[SourceQuality "1"]
[TimeControl "40/5400+30:1800+30"]

1. e4 c5 2. Nf3 Nc6 3. d4 cxd4 4. Nxd4 e5 5. Nf5 d6 6. Bd3 Nf6 7. O-O Bxf5 8. exf5 Qd7 9. Nc3 Be7 10. Bg5 O-O 11. Bxf6 Bxf6 12. Qh5 Nb4 13. Bb5 Qe7 14. Qe2 Nc6 15. Nd5 Qd8 16. Qh5 Nd4 17. c3 Nxb5 18. Qg4 Nc7 19. Nxc7 Qxc7 20. f4 e4 21. Rfe1 d5 22. Rad1 Qb6+ 23. Kh1 Rad8 24. Rd2 Rfe8 25. Ree2 Bxc3 26. Rd1 Bf6 27. Rde1 e3 28. b3 d4 29. Qg3 d3 30. Rxe3 Rxe3 31. Rxe3 d2 32. Rd3 d1=Q+ 33. Rxd1 Rxd1+ 34. Qe1 Rxe1# 0-1

[Event "IIFL Wealth  4th Mumbai Junior U-13"]
[Site "Mumbai"]
[Date "2019.01.02"]
[Round "4"]
[White "Zia, Tahsin Tajwar"]
[Black "Abhyuday Santhosh"]
[Result "1-0"]
[ECO "D00"]
[WhiteElo "1925"]
[BlackElo "1409"]
[Annotator "NA"]
[PlyCount "97"]
[EventDate "2018.12.30"]
[EventType "swiss"]
[EventCountry "IND"]
[SourceTitle "playchess.com"]
[Source "ChessBase"]
[SourceQuality "1"]
[TimeControl "40/5400+30:1800+30"]

1. d4 {[%emt 0:00:00]} d5 {[%emt 0:00:00]} 2. Bf4 {[%emt 0:00:00]} Nf6 {[%emt 0:00:00]} 3. e3 {[%emt 0:00:00]} c5 {[%emt 0:00:01]} 4. Nf3 {[%emt 0:00:06]} Nc6 {[%emt 0:00:09]} 5. Nbd2 {[%emt 0:00:05] D02: 1 d4 d5 2 Nf3 sidelines, including 2...Nf6 3 g3 and 2...Nf6 3 Bf4} (5. c3 e6 6. Nbd2 cxd4 7. exd4 Nh5 8. Bg5 f6 9. Be3 Bd6 10. Bb5 O-O 11. O-O Ne7 12. Re1 Bd7 13. Bd3 g6 14. Bh6 Rf7 {½-½ (83) Caruana,F (2822)-Aronian,L (2767) chess.com INT 2018}) 5... cxd4 {[%emt 0:00:17]} 6. exd4 {[%emt 0:00:09]} Bf5 {[%emt 0:00:42]} 7. c3 {[%emt 0:00:47]} e6 {[%emt 0:00:15]} 8. Qb3 {[%emt 0:02:47]} Qc8 {[%emt 0:00:48]} 9. a4 {[%emt 0:02:43]} Be7 {[%emt 0:03:21]} 10. a5 {[%emt 0:01:36]} a6 {[%emt 0:00:55]} 11. Be2 $146 {[%emt 0:02:08]} ({Predecessor:} 11. Qd1 O-O 12. Be2 Qd8 13. Nb3 b6 14. axb6 Qxb6 {½-½ (34) Vydeslaver,A (2385)-Spalir,J (2204) Pardubice 2012}) 11... Bg6 {[%emt 0:06:02]} 12. h3 {[%emt 0:02:21]} h6 {[%emt 0:04:26]} 13. O-O {[%emt 0:01:18]} O-O {[%emt 0:00:07]} 14. Rfc1 {[%emt 0:00:47]} Qd8 {[%emt 0:01:06]} 15. Qxb7 {[%emt 0:04:33]} Nxa5 {[%emt 0:01:58]} 16. Rxa5 {[%emt 0:04:43]} Qxa5 {[%emt 0:00:15]} 17. Qxe7 {[%emt 0:00:21]} Qb6 {[%emt 0:02:29]} 18. Qa3 {[%emt 0:01:18]} Rfc8 {[%emt 0:05:51]} 19. Ra1 {[%emt 0:01:47]} Ne4 {[%emt 0:05:42]} 20. Nxe4 {[%emt 0:01:18]} Bxe4 {[%emt 0:01:51]} 21. Nd2 {[%emt 0:01:06]} Bc2 {[%emt 0:01:04]} 22. Rc1 {[%emt 0:01:19]} Bg6 {[%emt 0:01:00]} 23. Nb3 {[%emt 0:04:28]} f6 {[%emt 0:04:32]} 24. Nc5 {[%emt 0:02:20]} Be8 {[%emt 0:06:23]} 25. Ra1 {[%emt 0:02:15]} Bb5 {[%emt 0:01:17]} 26. Bxb5 {[%emt 0:05:33] Pin} axb5 {[%emt 0:00:36]} 27. Qxa8 {[%emt 0:00:02]} Rxa8 {[%emt 0:00:18]} 28. Rxa8+ {[%emt 0:00:02]} Kh7 {[%emt 0:00:31]} 29. b4 {[%emt 0:00:58]} Kg6 {[%emt 0:02:34]} 30. g4 {[%emt 0:02:39]} h5 {[%emt 0:00:53]} 31. Ra6 {[%emt 0:02:19]} Qd8 {[%emt 0:00:20]} 32. Rxe6 {[%emt 0:01:04]} Qa8 {[%emt 0:00:13]} 33. Kg2 {[%emt 0:01:40]} Qa1 {[%emt 0:00:35]} 34. Re3 hxg4 {[%emt 0:00:20]} 35. hxg4 {[%emt 0:01:12]} Qd1 {[%emt 0:00:13]} 36. Rg3 {[%emt 0:04:02]} Kf7 {[%emt 0:00:48]} 37. g5 {[%emt 0:03:10]} fxg5 {[%emt 0:03:37]} 38. Rxg5 {[%emt 0:03:41]} Qe2 {[%emt 0:00:11]} 39. Be5 {[%emt 0:00:00]} g6 {[%emt 0:00:00]} 40. Rg3 {[%emt 0:00:00]} Qc2 {[%emt 0:00:00]} 41. Rf3+ {[%emt 0:05:18]} Ke7 {[%emt 0:05:16]} 42. Bg3 {[%emt 0:00:46]} Qd1 {[%emt 0:00:17]} 43. Re3+ {[%emt 0:01:16]} Kf7 {[%emt 0:01:18]} 44. Nd7 {[%emt 0:02:12]} Qc2 {[%emt 0:02:08]} 45. Bh4 {[%emt 0:02:56]} Kg7 {[%emt 0:02:28]} 46. Bf6+ {[%emt 0:01:05]} Kh7 {[%emt 0:00:51]} 47. Ne5 {[%emt 0:01:35]} Kg8 48. Rh3 {[%emt 0:05:49]} Qe4+ {[%emt 0:01:14]} 49. Kg3 {[%emt 0:00:21]} 1-0

[Event "IIFL Wealth  4th Mumbai Junior U-13"]
[Site "Mumbai"]
[Date "2019.01.02"]
[Round "4"]
[White "Savitha Shri B"]
[Black "Vivaan Vijay Saraogi"]
[Result "0-1"]
[ECO "A05"]
[WhiteElo "1894"]
[BlackElo "1290"]
[Annotator "NA"]
[PlyCount "84"]
[EventDate "2018.12.30"]
[EventType "swiss"]
[EventCountry "IND"]
[SourceTitle "playchess.com"]
[Source "ChessBase"]
[SourceQuality "1"]
[TimeControl "40/5400+30:1800+30"]

1. Nf3 {[%emt 0:00:00]} Nf6 {[%emt 0:00:00]} 2. g3 {[%emt 0:00:00]} d5 {[%emt 0:00:00]} 3. d4 {[%emt 0:00:00]} e6 {[%emt 0:00:36]} 4. Bg2 {[%emt 0:00:06]} Be7 {[%emt 0:00:20]} 5. O-O {[%emt 0:00:07]} O-O {[%emt 0:00:04]} 6. b3 {[%emt 0:00:03]} b6 {[%emt 0:01:00]} 7. Bb2 {[%emt 0:00:19]} Bb7 {[%emt 0:00:26]} 8. Ne5 {[%emt 0:00:07] D02: 1 d4 d5 2 Nf3 sidelines, including 2...Nf6 3 g3 and 2...Nf6 3 Bf4} (8. Nbd2 Nbd7 9. e3 c5 10. c4 Rc8 11. Rc1 dxc4 12. Nxc4 cxd4 13. Qxd4 Nc5 14. Rfd1 Qxd4 15. Nxd4 Bxg2 16. Kxg2 Nd5 17. Nb5 a6 18. Nc3 Nxc3 19. Bxc3 b5 20. Nb6 {1-0 (37) Moiseenko,V (2492)-Timofeev,A (2580) Sochi 2018}) 8... Nbd7 {[%emt 0:00:37]} 9. f4 {[%emt 0:00:31]} c5 {[%emt 0:00:33]} 10. e3 {[%emt 0:01:01]} Ne4 $146 {[%emt 0:03:14]} ({Predecessor:} 10... Rc8 11. Nd2 Nxe5 12. fxe5 Ne4 13. Nxe4 dxe4 14. c4 Bg5 15. Qe2 Bh6 {0-1 (28) Guerra,E-Velazco,E Arequipa 2003}) 11. Nd2 {[%emt 0:11:22]} Ndf6 {[%emt 0:00:30]} 12. Qe2 {[%emt 0:04:59]} Nxd2 {[%emt 0:03:40]} 13. Qxd2 {[%emt 0:00:13]} Rc8 {[%emt 0:00:34]} 14. Rad1 {[%emt 0:04:31]} Ba6 {[%emt 0:01:02]} 15. Rfe1 {[%emt 0:01:25]} Qc7 {[%emt 0:00:19]} 16. Rc1 {[%emt 0:07:41]} Rfd8 {[%emt 0:05:26]} 17. Qf2 {[%emt 0:00:11]} Bf8 {[%emt 0:01:02]} 18. g4 {[%emt 0:03:46]} Ne4 {[%emt 0:04:02]} 19. Bxe4 {[%emt 0:02:59]} dxe4 {[%emt 0:00:04]} 20. c4 {[%emt 0:00:47]} f6 {[%emt 0:00:16]} 21. Qg2 {[%emt 0:15:47]} fxe5 {[%emt 0:00:43]} 22. fxe5 {[%emt 0:00:05]} Bb7 {[%emt 0:01:07]} 23. g5 {[%emt 0:12:22]} g6 {[%emt 0:05:28]} 24. Rf1 {[%emt 0:05:21]} Bg7 {[%emt 0:01:29]} 25. Rfd1 $2 {[%emt 0:03:09]} (25. Qg4 Qc6 26. Rcd1) 25... Rf8 {[%emt 0:01:03]} 26. Qg4 {[%emt 0:00:36]} Rce8 {[%emt 0:02:15]} 27. b4 {[%emt 0:06:08]} Rf3 {[%emt 0:00:53]} 28. bxc5 {[%emt 0:00:22]} bxc5 {[%emt 0:00:31]} 29. Ba3 {[%emt 0:01:56]} cxd4 {[%emt 0:00:48]} 30. Bd6 {[%emt 0:00:24]} Qa5 {[%emt 0:00:53]} 31. exd4 {[%emt 0:03:19]} Qxa2 {[%emt 0:00:33]} 32. d5 {[%emt 0:00:52]} Qe2 {[%emt 0:02:55]} 33. Qh4 {[%emt 0:05:37]} exd5 34. cxd5 {[%emt 0:00:56]} Bxe5 {[%emt 0:03:26]} 35. Bxe5 {[%emt 0:01:44]} Rxe5 {[%emt 0:00:31]} 36. d6 {[%emt 0:00:02]} Qe3+ {[%emt 0:00:12]} 37. Kh1 {[%emt 0:00:29]} Qxg5 {[%emt 0:06:29]} 38. Qxg5 {[%emt 0:02:33]} Rxg5 {[%emt 0:00:06]} 39. Rb1 {[%emt 0:05:35]} Bd5 {[%emt 0:01:16]} 40. Rb5 {[%emt 0:00:00]} Rd3 {[%emt 0:00:00]} 41. Rc1 {[%emt 0:10:25]} e3+ {[%emt 0:00:44]} 42. Rxd5 {[%emt 0:00:06]} Rgxd5 {[%emt 0:00:15]} 0-1

[Event "IIFL Wealth  4th Mumbai Junior U-13"]
[Site "Mumbai"]
[Date "2019.01.02"]
[Round "4"]
[White "Potawad Anirudhha"]
[Black "Renganayaki V"]
[Result "1/2-1/2"]
[ECO "B27"]
[WhiteElo "1849"]
[BlackElo "1376"]
[Annotator "NA RC"]
[PlyCount "84"]
[EventDate "2018.12.30"]
[EventType "swiss"]
[EventCountry "IND"]
[SourceTitle "playchess.com"]
[Source "ChessBase"]
[SourceQuality "1"]
[TimeControl "40/5400+30:1800+30"]

1. e4 {[%emt 0:09:25]} c5 {[%emt 0:00:00]} 2. Nf3 {[%emt 0:00:16]} g6 {[%emt 0:00:04]} 3. c3 {[%emt 0:00:58]} Bg7 {[%emt 0:00:06]} 4. d4 {[%emt 0:00:09]} cxd4 {[%emt 0:00:03]} 5. cxd4 {[%emt 0:00:08]} d5 {[%emt 0:00:03]} 6. e5 {[%emt 0:00:33]} Bg4 {[%emt 0:00:05]} 7. Bb5+ {[%emt 0:00:51] B27: Sicilian: 2 Nf3, unusual Black 2nd moves} Nd7 {[%emt 0:00:07]} 8. Nc3 {[%emt 0:02:06]} (8. O-O e6 9. Nbd2 Ne7 10. h3 Bxf3 11. Nxf3 a6 12. Bd3 O-O 13. h4 f6 14. exf6 Bxf6 {1-0 (37) Andreikin,D (2736)-Savchenko,B (2613) Sochi 2016}) 8... e6 {[%emt 0:00:07]} 9. O-O {[%emt 0:02:37]} Ne7 {[%emt 0:00:05]} 10. h3 $146 {[%emt 0:02:44]} ({Predecessor:} 10. Bg5 O-O 11. Qa4 Bxf3 12. Bxd7 Bh5 13. Qa3 Qxd7 14. Qxe7 Qxe7 15. Bxe7 {0-1 (48) Burnett,R (2315)-Chow,A (2310) USA 1994}) 10... Bxf3 {[%emt 0:00:18]} 11. Qxf3 {[%emt 0:00:16]} O-O {[%emt 0:03:01]} 12. Bg5 {[%emt 0:08:35]} h6 {[%emt 0:06:14]} 13. Be3 {[%emt 0:13:07]} a6 {[%emt 0:05:14]} 14. Ba4 {[%emt 0:06:45]} b5 {[%emt 0:04:38]} 15. Bb3 {[%emt 0:03:12]} Nb6 {[%emt 0:01:44]} 16. a3 {[%emt 0:05:54]} Rc8 {[%emt 0:03:27]} 17. Rfd1 {[%emt 0:04:19]} Nc6 {[%emt 0:05:24]} 18. Qe2 {[%emt 0:08:28]} Na5 {[%emt 0:01:30]} 19. Ba2 {[%emt 0:00:08]} Nac4 {[%emt 0:05:55]} 20. Bxc4 {[%emt 0:00:48]} Nxc4 {[%emt 0:01:32]} 21. Rac1 {[%emt 0:00:14]} Qb6 {[%emt 0:05:27]} 22. Nb1 {[%emt 0:03:31]} b4 {[%emt 0:08:54]} 23. a4 {[%emt 0:08:12]} b3 {[%emt 0:12:31]} 24. Rc3 {[%emt 0:01:55]} Qb4 {[%emt 0:02:09]} 25. Rdc1 $1 {[%emt 0:03:22]} Qxa4 {[%emt 0:14:18]} 26. Nd2 {[%emt 0:00:15]} Nb6 {[%emt 0:10:38]} 27. Nxb3 {[%emt 0:01:39]} Rxc3 {[%emt 0:01:10]} 28. Rxc3 {[%emt 0:00:02]} Nc4 {[%emt 0:00:17]} 29. Nc5 $11 {[%emt 0:04:03]} Qa1+ {[%emt 0:01:39]} 30. Rc1 {[%emt 0:01:50]} Qxb2 {[%emt 0:01:30]} 31. Qxb2 {[%emt 0:00:27]} Nxb2 {[%emt 0:00:03]} 32. Nxa6 {[%emt 0:00:15]} Nc4 {[%emt 0:00:29]} 33. Rb1 {[%emt 0:00:55]} Ra8 {[%emt 0:01:21]} 34. Rb8+ {[%emt 0:00:22]} Rxb8 {[%emt 0:00:05]} 35. Nxb8 {[%emt 0:00:03]} Kf8 {[%emt 0:01:33]} 36. Kf1 {[%emt 0:01:15]} h5 {[%emt 0:00:06]} 37. Bg5 {[%emt 0:01:57]} Ke8 {[%emt 0:02:26]} 38. Ke2 {[%emt 0:00:17]} Bf8 {[%emt 0:00:26]} 39. Kd3 {[%emt 0:00:45]} Be7 {[%emt 0:01:00]} 40. Bxe7 {[%emt 0:00:00]} Kxe7 {[%emt 0:00:00]} 41. Kc3 Kd8 42. Nc6+ Kc7 1/2-1/2

[Event "IIFL Wealth  4th Mumbai Junior U-13"]
[Site "Mumbai"]
[Date "2019.01.02"]
[Round "4"]
[White "Larmet, Nino"]
[Black "Dawda Vihaan"]
[Result "1-0"]
[ECO "C90"]
[WhiteElo "1835"]
[BlackElo "1212"]
[Annotator "NA RC"]
[PlyCount "103"]
[EventDate "2018.12.30"]
[EventType "swiss"]
[EventCountry "IND"]
[SourceTitle "playchess.com"]
[Source "ChessBase"]
[SourceQuality "1"]
[TimeControl "40/5400+30:1800+30"]

1. e4 {[%emt 0:00:00]} e5 {[%emt 0:00:00]} 2. Nf3 {[%emt 0:00:00]} Nc6 {[%emt 0:00:15]} 3. Bb5 {[%emt 0:00:00]} a6 {[%emt 0:00:44]} 4. Ba4 {[%emt 0:00:00]} Nf6 {[%emt 0:00:21]} 5. d3 {[%emt 0:00:00]} b5 {[%emt 0:00:31]} 6. Bb3 {[%emt 0:00:07]} Be7 {[%emt 0:00:31]} 7. O-O {[%emt 0:00:10]} O-O {[%emt 0:00:45]} 8. Re1 {[%emt 0:00:37]} d6 {[%emt 0:00:27]} 9. c3 {[%emt 0:00:10]} Na5 {[%emt 0:00:11]} 10. Bc2 {[%emt 0:00:04]} c5 {[%emt 0:00:15]} 11. Nbd2 {[%emt 0:00:23]} Nc6 {[%emt 0:01:55]} 12. Nf1 {[%emt 0:01:12]} Re8 {[%emt 0:00:16]} 13. d4 {[%emt 0:02:11] C90: Closed Ruy Lopez with 7...d6: Early deviations} (13. Ne3 Bf8 14. a4 b4 15. Nd5 h6 16. a5 Nxd5 17. exd5 Nxa5 18. Ba4 Re7 19. Nd2 Rb8 20. c4 Nb7 21. Ne4 f5 22. Ng3 {1-0 (43) Carlsen,M (2837)-Ding,L (2774) Saint Louis 2017}) 13... cxd4 {[%emt 0:00:46]} 14. cxd4 {[%emt 0:00:04]} Bg4 {[%emt 0:01:17]} 15. Be3 {[%emt 0:13:51]} exd4 {[%emt 0:02:32]} 16. Bxd4 {[%emt 0:02:08]} Bxf3 {[%emt 0:00:14]} 17. gxf3 {[%emt 0:00:04]} Rc8 {[%emt 0:01:35]} ({Predecessor:} 17... Nxd4 18. Qxd4 Nh5 19. e5 dxe5 20. Qxe5 Nf6 {1-0 (41) Janowski,D-Liebenstein,H New York,NY 1913}) 18. Bb3 {[%emt 0:01:07]} Bf8 {[%emt 0:01:21]} 19. Be3 {[%emt 0:03:12]} g6 {[%emt 0:02:57]} 20. Bg5 {[%emt 0:00:31]} Bg7 {[%emt 0:01:04]} 21. Ne3 {[%emt 0:01:25]} Ne7 {[%emt 0:02:29]} 22. Qd2 {[%emt 0:01:33]} Qb6 {[%emt 0:04:39]} 23. Red1 {[%emt 0:01:32]} Red8 {[%emt 0:00:17]} 24. Rac1 {[%emt 0:09:50]} Rxc1 {[%emt 0:03:49]} 25. Rxc1 {[%emt 0:01:12]} Qa7 {[%emt 0:01:02]} 26. Rd1 {[%emt 0:01:58]} Qd7 {[%emt 0:03:32]} 27. e5 {[%emt 0:08:55]} Ne8 {[%emt 0:01:33]} 28. Bf4 {[%emt 0:01:28]} Qh3 {[%emt 0:03:42]} 29. exd6 {[%emt 0:24:46]} Qxf3 {[%emt 0:00:38]} 30. Bg3 {[%emt 0:00:47]} Nf6 {[%emt 0:06:31]} 31. Qa5 {[%emt 0:11:19]} Nc6 {[%emt 0:00:25]} 32. Qc7 {[%emt 0:00:08]} Ne8 {[%emt 0:00:38]} 33. Bxf7+ {[%emt 0:01:12]} Qxf7 {[%emt 0:00:22]} 34. Qxc6 {[%emt 0:00:04]} Nf6 {[%emt 0:02:04]} 35. Qxa6 {[%emt 0:03:28]} Ne4 {[%emt 0:04:55]} 36. Qxb5 {[%emt 0:00:48]} Qf3 {[%emt 0:00:57]} 37. Qd5+ {[%emt 0:03:24]} Kh8 {[%emt 0:00:08]} 38. d7 {[%emt 0:02:35]} Bxb2 {[%emt 0:03:05]} 39. Be5+ {[%emt 0:01:18]} Bxe5 {[%emt 0:00:14]} 40. Qxe5+ {[%emt 0:00:00]} Kg8 {[%emt 0:00:00]} 41. Qe8+ {[%emt 0:01:53]} Kg7 {[%emt 0:00:42]} 42. Qe7+ $2 {[%emt 0:00:21]} Kh6 {[%emt 0:00:12]} 43. Qh4+ {[%emt 0:00:24]} Kg7 {[%emt 0:00:10]} 44. Qe7+ {[%emt 0:11:41]} Kh6 $18 {[%emt 0:00:50]} 45. Qh4+ {[%emt 0:15:17]} Kg7 {[%emt 0:00:14]} 46. Rd4 $18 {[%emt 0:07:49]} Nf6 {[%emt 0:00:09]} 47. Ng4 {[%emt 0:00:26]} (47. a4) (47. Rf4 Qc6 $16) 47... Ne4 {[%emt 0:00:31]} 48. Qe7+ {[%emt 0:00:51]} Kg8 {[%emt 0:00:18]} 49. Qxd8+ {[%emt 0:00:05]} Kg7 {[%emt 0:00:12]} 50. Qe7+ {[%emt 0:00:01]} Kg8 {[%emt 0:00:01]} 51. d8=Q+ {[%emt 0:00:06]} Qf8 {[%emt 0:00:06]} 52. Qexf8# {[%emt 0:00:02]} 1-0